[Event "WYCC 2018 O18"]
[Site "Halkidiki"]
[Date "2018.10.29"]
[Round "10"]
[White "Burovic, Rijad"]
[Black "Livaic, Leon"]
[Result "0-1"]
[ECO "A08"]
[WhiteElo "2380"]
[BlackElo "2481"]
[Annotator "ChessBase"]
[PlyCount "92"]
[EventDate "2018.10.20"]
[EventType "swiss"]
[EventCountry "GRE"]
[SourceTitle "playchess.com"]
[Source "ChessBase"]
[SourceQuality "1"]
[TimeControl "40/5400+30:1800+30"]

1. e4 {[%emt 0:00:00]} e6 {[%emt 0:00:00]} 2. d3 {[%emt 0:00:52]} d5 {[%emt 0:00:12]} 3. Nd2 {[%emt 0:00:14]} Nf6 {[%emt 0:00:07]} 4. Ngf3 {[%emt 0:00:20]} c5 {[%emt 0:00:08]} 5. g3 {[%emt 0:00:19]} Nc6 {[%emt 0:00:09]} 6. Bg2 {[%emt 0:00:09]} Be7 {[%emt 0:00:12]} 7. O-O {[%emt 0:00:15]} O-O {[%emt 0:00:16]} 8. Re1 {[%emt 0:00:10]} Qc7 {[%emt 0:00:30]} 9. e5 {[%emt 0:02:15]} Nd7 {[%emt 0:00:13]} 10. Qe2 {[%emt 0:00:11]} b5 {[%emt 0:00:38]} 11. Nf1 {[%emt 0:00:50]} Bb7 {[%emt 0:00:56]} 12. c3 {[%emt 0:09:54]} a5 {[%emt 0:01:04]} 13. a4 {[%emt 0:08:47]} Ba6 {[%emt 0:03:56]} 14. h4 {[%emt 0:04:12]} Rfb8 {[%emt 0:03:59]} 15. axb5 {[%emt 0:13:26]} Bxb5 {[%emt 0:00:33]} 16. Bf4 {[%emt 0:02:44]} Rb6 {[%emt 0:09:08]} 17. Ne3 {[%emt 0:05:10]} Qd8 {[%emt 0:00:27]} 18. c4 {[%emt 0:02:12]} dxc4 {[%emt 0:00:04]} 19. dxc4 {[%emt 0:00:56]} Ba6 {[%emt 0:00:11]} 20. Red1 {[%emt 0:00:51]} Qc8 {[%emt 0:01:25]} 21. h5 {[%emt 0:05:20]} Rab8 {[%emt 0:01:53]} 22. Ra2 {[%emt 0:13:02]} Rb4 {[%emt 0:05:41]} 23. h6 {[%emt 0:01:35]} g6 {[%emt 0:00:15]} 24. Bf1 {[%emt 0:07:00]} Nb6 {[%emt 0:04:47]} 25. Qc2 {[%emt 0:03:15]} a4 {[%emt 0:12:14]} 26. Ra3 {[%emt 0:04:34]} Bb7 {[%emt 0:07:07]} 27. Bg2 {[%emt 0:03:24]} Na5 {[%emt 0:00:43]} 28. Bg5 {[%emt 0:06:41]} Bxf3 {[%emt 0:03:45]} 29. Bxe7 {[%emt 0:00:21]} Bxd1 {[%emt 0:00:18]} 30. Qxd1 {[%emt 0:01:39]} Qd7 {[%emt 0:03:27]} 31. Bd6 {[%emt 0:01:34]} Naxc4 {[%emt 0:00:47]} 32. Rd3 {[%emt 0:01:06]} Nxd6 {[%emt 0:00:56]} 33. Rxd6 {[%emt 0:00:30]} Qe7 {[%emt 0:00:52]} 34. Ng4 {[%emt 0:01:30]} Rxb2 {[%emt 0:02:30]} 35. Nf6+ {[%emt 0:00:41]} Kh8 {[%emt 0:00:00]} 36. Rxb6 {[%emt 0:01:15]} R2xb6 {[%emt 0:00:27]} 37. Qxa4 {[%emt 0:00:03]} Rb4 {[%emt 0:02:31]} 38. Qc6 {[%emt 0:00:06]} Rb1+ {[%emt 0:02:16]} 39. Kh2 {[%emt 0:01:01]} Qf8 {[%emt 0:00:56]} 40. Ng4 {[%emt 0:00:00]} R1b4 {[%emt 0:00:00]} 41. f4 {[%emt 0:01:19]} c4 {[%emt 0:02:06]} 42. Be4 {[%emt 0:01:31]} Rc8 {[%emt 0:00:51]} 43. Qd6 {[%emt 0:00:51]} Qxd6 {[%emt 0:00:46]} 44. exd6 {[%emt 0:00:02]} f5 {[%emt 0:01:08]} 45. Ne5 {[%emt 0:00:39]} fxe4 {[%emt 0:00:22]} 46. d7 {[%emt 0:00:05]} Rbb8 {[%emt 0:00:17]} 0-1

[Event "WYCC 2018 O18"]
[Site "Halkidiki"]
[Date "2018.10.29"]
[Round "10"]
[White "Muha, Miljenko"]
[Black "Pedoson, Georg Aleksander"]
[Result "1-0"]
[ECO "D45"]
[WhiteElo "2365"]
[BlackElo "2162"]
[Annotator "NA"]
[PlyCount "105"]
[EventDate "2018.10.20"]
[EventType "swiss"]
[EventCountry "GRE"]
[SourceTitle "playchess.com"]
[Source "ChessBase"]
[SourceQuality "1"]
[TimeControl "40/5400+30:1800+30"]

1. Nf3 {[%emt 0:00:00]} d5 {[%emt 0:00:00]} 2. d4 {[%emt 0:00:00]} Nf6 {[%emt 0:00:35]} 3. c4 {[%emt 0:00:00]} c6 {[%emt 0:01:50]} 4. e3 {[%emt 0:01:37]} e6 {[%emt 0:00:30]} 5. Nc3 {[%emt 0:06:18]} Bd6 {[%emt 0:01:30]} 6. Qc2 {[%emt 0:04:04]} Nbd7 {[%emt 0:03:41]} 7. b3 {[%emt 0:00:40]} dxc4 {[%emt 0:01:12]} 8. Bxc4 {[%emt 0:04:55]} O-O {[%emt 0:02:48]} 9. Bb2 {[%emt 0:02:35] LiveBook: 13 Games} b5 {[%emt 0:04:33]} 10. Be2 {[%emt 0:04:25]} Bb7 {[%emt 0:01:59]} 11. O-O {[%emt 0:00:28]} a6 {[%emt 0:05:00]} 12. a4 {[%emt 0:15:12]} Rc8 {[%emt 0:10:23]} 13. Ng5 $11 {[%emt 0:10:13]} Qc7 {[%emt 0:06:18]} 14. h3 {[%emt 0:01:53]} c5 {[%emt 0:07:54]} 15. axb5 {[%emt 0:04:06]} cxd4 {[%emt 0:00:07]} 16. bxa6 {[%emt 0:07:49]} Bxg2 {[%emt 0:00:13]} 17. Kxg2 {[%emt 0:00:32]} dxc3 {[%emt 0:00:07]} 18. Bc1 {[%emt 0:00:24]} Ra8 {[%emt 0:03:33]} 19. Ne4 {[%emt 0:04:28]} Nxe4 {[%emt 0:04:37]} 20. Qxe4 {[%emt 0:00:02]} Qb6 {[%emt 0:01:22]} 21. Qd4 {[%emt 0:03:22]} Qxd4 {[%emt 0:03:15]} 22. exd4 {[%emt 0:01:51]} Rfb8 {[%emt 0:00:14]} 23. Ba3 {[%emt 0:09:52]} Bxa3 {[%emt 0:01:42]} 24. Rxa3 {[%emt 0:00:02]} Nf6 {[%emt 0:00:38]} 25. Bc4 {[%emt 0:05:12]} g6 {[%emt 0:04:02]} 26. Kf3 {[%emt 0:00:09]} Nd5 {[%emt 0:00:57]} 27. Rc1 {[%emt 0:01:04]} Rb6 {[%emt 0:00:24]} 28. Ke2 {[%emt 0:03:04]} Nb4 {[%emt 0:02:27]} 29. Rxc3 {[%emt 0:00:37]} Nxa6 {[%emt 0:00:04]} 30. b4 {[%emt 0:01:18]} Rc8 {[%emt 0:00:35]} 31. Bxa6 {[%emt 0:00:46]} Rxc3 {[%emt 0:00:05]} 32. Rxc3 {[%emt 0:00:06]} Rxa6 {[%emt 0:00:03]} 33. Rb3 {[%emt 0:00:58]} Kf8 {[%emt 0:05:40]} 34. b5 {[%emt 0:00:02]} Rb6 {[%emt 0:00:54]} 35. Kd3 {[%emt 0:00:05]} Ke7 {[%emt 0:00:05]} 36. Kc4 {[%emt 0:00:04]} Kd6 {[%emt 0:00:16]} 37. Kb4 {[%emt 0:01:11]} f5 {[%emt 0:05:16]} 38. Rc3 {[%emt 0:01:23]} Kd5 {[%emt 0:03:25]} 39. Rc5+ {[%emt 0:01:38]} Kxd4 {[%emt 0:01:41]} 40. Rc6 {[%emt 0:00:00]} Rb8 {[%emt 0:00:00]} 41. Rxe6 {[%emt 0:01:07]} g5 {[%emt 0:01:17]} 42. b6 {[%emt 0:02:28]} h5 {[%emt 0:00:21]} 43. Kb5 {[%emt 0:00:37]} g4 {[%emt 0:00:17]} 44. Rh6 {[%emt 0:01:15]} f4 {[%emt 0:03:56]} 45. Rxh5 {[%emt 0:05:51]} g3 {[%emt 0:00:05]} 46. fxg3 {[%emt 0:00:06]} f3 {[%emt 0:00:03]} 47. Rf5 {[%emt 0:00:24]} Ke3 {[%emt 0:00:06]} 48. g4 {[%emt 0:01:04]} f2 {[%emt 0:00:07]} 49. g5 {[%emt 0:01:12]} Rc8 {[%emt 0:00:42]} 50. g6 {[%emt 0:00:37]} Rc1 {[%emt 0:00:21]} 51. g7 {[%emt 0:00:40]} Rb1+ {[%emt 0:00:17]} 52. Kc6 {[%emt 0:00:36]} Rc1+ {[%emt 0:00:30]} 53. Kd6 {[%emt 0:00:32]} 1-0

[Event "WYCC 2018 O18"]
[Site "Halkidiki"]
[Date "2018.10.29"]
[Round "10"]
[White "Stijve, Theo"]
[Black "Lindbol, Aleksander"]
[Result "1-0"]
[ECO "B20"]
[WhiteElo "2345"]
[BlackElo "2166"]
[Annotator "NA"]
[PlyCount "79"]
[EventDate "2018.10.20"]
[EventType "swiss"]
[EventCountry "GRE"]
[SourceTitle "playchess.com"]
[Source "ChessBase"]
[SourceQuality "1"]
[TimeControl "40/5400+30:1800+30"]

1. e4 {[%emt 0:00:09]} c5 {[%emt 0:00:00]} 2. d3 {[%emt 0:00:12]} Nc6 {[%emt 0:01:37]} 3. g3 {[%emt 0:00:14]} Nf6 {[%emt 0:04:32]} 4. Bg2 {[%emt 0:00:29]} d5 {[%emt 0:01:38]} 5. Nd2 {[%emt 0:01:54]} e6 {[%emt 0:00:49]} 6. f4 {[%emt 0:00:30]} Be7 {[%emt 0:01:50] LiveBook: 12 Games} 7. Ngf3 {[%emt 0:01:56]} b5 {[%emt 0:01:22]} 8. O-O {[%emt 0:04:13]} O-O {[%emt 0:02:37]} 9. c3 {[%emt 0:10:16]} Bb7 {[%emt 0:08:35]} 10. e5 {[%emt 0:08:44]} Nd7 {[%emt 0:00:13]} 11. d4 {[%emt 0:05:29]} Qb6 {[%emt 0:07:17]} 12. Nb1 {[%emt 0:03:22]} a5 {[%emt 0:03:26]} 13. Be3 $15 {[%emt 0:01:50]} a4 {[%emt 0:00:58]} 14. Bf2 {[%emt 0:05:01]} Rfc8 {[%emt 0:11:00]} 15. Na3 {[%emt 0:06:10]} b4 {[%emt 0:08:37]} 16. cxb4 {[%emt 0:05:27]} Nxb4 {[%emt 0:02:13]} 17. f5 {[%emt 0:07:20]} exf5 {[%emt 0:02:17]} 18. Bh3 {[%emt 0:02:13]} Qg6 {[%emt 0:14:06]} 19. Qb1 {[%emt 0:06:22]} Qh5 {[%emt 0:05:16]} 20. Qxf5 {[%emt 0:01:37]} Qxf5 {[%emt 0:00:20]} 21. Bxf5 {[%emt 0:00:06]} Rd8 {[%emt 0:00:30]} 22. e6 {[%emt 0:04:36]} fxe6 {[%emt 0:02:29]} 23. Bxe6+ {[%emt 0:00:26]} Kh8 {[%emt 0:00:05]} 24. Bxd7 {[%emt 0:04:21]} Rxd7 {[%emt 0:00:02]} 25. Ne5 {[%emt 0:00:07]} Rc7 {[%emt 0:00:03]} 26. Nb5 {[%emt 0:00:45]} Rcc8 {[%emt 0:00:05]} 27. Nd6 {[%emt 0:04:40]} Rc7 {[%emt 0:02:51]} 28. Nb5 {[%emt 0:00:24]} Rcc8 {[%emt 0:00:12]} 29. Nd6 {[%emt 0:00:04]} Rc7 {[%emt 0:00:06]} 30. Nxb7 {[%emt 0:03:46]} Rxb7 {[%emt 0:00:06]} 31. dxc5 {[%emt 0:00:09]} Bf6 {[%emt 0:00:12]} 32. Rae1 {[%emt 0:05:08]} Kg8 {[%emt 0:09:43]} 33. a3 Nc2 {[%emt 0:01:39]} 34. Re2 {[%emt 0:02:43]} Rxb2 {[%emt 0:00:10]} 35. Nd7 {[%emt 0:03:41]} Bc3 {[%emt 0:01:16]} 36. Nb6 {[%emt 0:00:18]} Ra6 {[%emt 0:03:55]} 37. Nxd5 {[%emt 0:00:38]} Nd4 {[%emt 0:01:03]} 38. Re8+ {[%emt 0:00:40]} Kf7 {[%emt 0:00:33]} 39. Re7+ {[%emt 0:00:05]} Kg6 {[%emt 0:00:31]} 40. Nxc3 {[%emt 0:00:00]} 1-0

[Event "WYCC 2018 O18"]
[Site "Halkidiki"]
[Date "2018.10.29"]
[Round "10"]
[White "Varacalli, Francisco"]
[Black "Giesinger, Elias"]
[Result "1/2-1/2"]
[ECO "B49"]
[WhiteElo "2334"]
[BlackElo "2131"]
[Annotator "NA"]
[PlyCount "119"]
[EventDate "2018.10.20"]
[EventType "swiss"]
[EventCountry "GRE"]
[SourceTitle "playchess.com"]
[Source "ChessBase"]
[SourceQuality "1"]
[TimeControl "40/5400+30:1800+30"]

1. e4 {[%emt 0:00:00]} c5 {[%emt 0:00:00]} 2. Nf3 {[%emt 0:00:00]} Nc6 {[%emt 0:00:00]} 3. d4 {[%emt 0:01:04]} cxd4 {[%emt 0:00:00]} 4. Nxd4 {[%emt 0:00:08]} e6 {[%emt 0:00:10]} 5. Nc3 {[%emt 0:00:59]} Qc7 {[%emt 0:00:16]} 6. Be3 {[%emt 0:01:46]} a6 {[%emt 0:00:07]} 7. Be2 {[%emt 0:00:20]} Nf6 {[%emt 0:00:52]} 8. O-O {[%emt 0:01:26]} Be7 {[%emt 0:00:42]} 9. f4 {[%emt 0:02:06]} d6 {[%emt 0:00:17]} 10. Kh1 {[%emt 0:01:30]} O-O {[%emt 0:00:25]} 11. Qe1 {[%emt 0:02:02]} Nxd4 {[%emt 0:01:56]} 12. Bxd4 {[%emt 0:00:10]} b5 {[%emt 0:00:08]} 13. a3 {[%emt 0:02:17]} Bb7 {[%emt 0:01:25]} 14. Qg3 {[%emt 0:02:12]} Rad8 {[%emt 0:00:31]} 15. Bd3 {[%emt 0:09:20] LiveBook: 93 Games B85: Sicilian Scheveningen: 6 Be2 a6, lines with early Be3} (15. Rae1 Qd7 16. Bd3 Nh5 17. Qg4 Nf6 18. Qg3 Nh5 19. Qg4 Nf6 20. Qg3 Nh5 21. Qg4 Nf6 22. Qg3 {½-½ (24) Andreikin,D (2712)-Grischuk,A (2772) Huaian 2017}) 15... Bc6 {[%emt 0:04:12]} 16. Rae1 {[%emt 0:01:30]} Qd7 {[%emt 0:01:15]} 17. Re3 {[%emt 0:16:29]} e5 {[%emt 0:06:39]} 18. fxe5 {[%emt 0:08:01]} Nh5 $146 {[%emt 0:00:28]} ({Predecessor:} 18... dxe5 19. Bxe5 Nh5 20. Qe1 f6 21. Rh3 g6 22. Rxh5 gxh5 23. Rf5 fxe5 24. Qg3+ Kh8 25. Qxe5+ Kg8 26. Qg3+ Kh8 {½-½ (26) Campian,C (2417)-Wagner,R (2454) ICCF email 2016}) 19. Qf3 {[%emt 0:08:20]} dxe5 {[%emt 0:02:30]} 20. Bxe5 {[%emt 0:03:08]} (20. Bb6 $1 $14 Rb8 21. Qxh5 Rxb6 22. Rh3 (22. Qxe5 f6 $14)) 20... f6 $14 {[%emt 0:02:54]} 21. Qxh5 {[%emt 0:04:24]} fxe5 {[%emt 0:00:10]} 22. Ref3 {[%emt 0:00:42]} Qe6 {[%emt 0:09:08]} 23. Nd5 {[%emt 0:09:48]} Bd6 {[%emt 0:08:28]} 24. Rxf8+ {[%emt 0:02:29]} Rxf8 {[%emt 0:02:30]} 25. Rxf8+ {[%emt 0:00:18]} Bxf8 {[%emt 0:00:09]} 26. Ne3 {[%emt 0:01:46]} Bc5 {[%emt 0:08:44]} 27. Qf5 {[%emt 0:01:08]} Qxf5 {[%emt 0:04:15]} 28. Nxf5 {[%emt 0:00:13]} Kf7 {[%emt 0:02:58]} 29. Ng3 {[%emt 0:05:24]} a5 {[%emt 0:05:13]} 30. Ne2 {[%emt 0:00:44]} b4 {[%emt 0:03:36]} 31. axb4 {[%emt 0:00:12]} axb4 {[%emt 0:00:10]} 32. g3 {[%emt 0:00:24]} Bd7 {[%emt 0:03:45]} 33. Kg2 {[%emt 0:01:51]} Bg4 {[%emt 0:01:40]} 34. Nc1 {[%emt 0:03:15]} Bd4 {[%emt 0:04:16]} 35. Bc4+ {[%emt 0:03:06]} Kf6 {[%emt 0:00:25]} 36. Na2 {[%emt 0:00:34]} Bxb2 {[%emt 0:02:53]} 37. Nxb4 {[%emt 0:00:07]} Bd4 {[%emt 0:05:33]} 38. Nd5+ {[%emt 0:00:16]} Kg6 {[%emt 0:01:22]} 39. Ne7+ {[%emt 0:03:14]} Kf6 {[%emt 0:00:46]} 40. Nd5+ {[%emt 0:00:00]} Kg6 {[%emt 0:00:00]} 41. c3 {[%emt 0:08:28]} Bc5 {[%emt 0:01:35]} 42. Nb4 {[%emt 0:04:09]} Kf6 {[%emt 0:00:32]} 43. Bg8 {[%emt 0:00:57]} h6 {[%emt 0:02:19]} 44. Nd3 {[%emt 0:03:56]} Ba7 {[%emt 0:02:35]} 45. c4 {[%emt 0:00:54]} Bd4 {[%emt 0:02:15]} 46. Nb4 {[%emt 0:02:05]} g5 {[%emt 0:03:25]} 47. Bd5 {[%emt 0:01:27]} h5 {[%emt 0:03:26]} 48. Nd3 {[%emt 0:01:39]} Be2 {[%emt 0:02:09]} 49. Nc1 {[%emt 0:01:30]} Bd1 {[%emt 0:00:28]} 50. h3 {[%emt 0:01:05]} h4 {[%emt 0:05:09]} 51. Nd3 {[%emt 0:01:57]} Be2 {[%emt 0:03:45]} 52. Ne1 {[%emt 0:00:48]} Ke7 {[%emt 0:02:17]} 53. gxh4 {[%emt 0:03:23]} gxh4 {[%emt 0:00:40]} 54. Nc2 {[%emt 0:01:14]} Bc5 {[%emt 0:00:46]} 55. Ne1 {[%emt 0:00:34]} Bd4 {[%emt 0:06:43]} 56. Nf3 {[%emt 0:00:37]} Bxf3+ {[%emt 0:00:55]} 57. Kxf3 {[%emt 0:00:06]} Kd6 {[%emt 0:01:25]} 58. Kg4 {[%emt 0:00:13]} Bf2 {[%emt 0:00:04]} 59. Kf5 {[%emt 0:00:08]} Bg3 {[%emt 0:00:11]} 60. Kg4 1/2-1/2

[Event "WYCC 2018 O18"]
[Site "Halkidiki"]
[Date "2018.10.29"]
[Round "10"]
[White "Banzea, Alexandru-Bogdan"]
[Black "Ayats Llobera, Gerard"]
[Result "1/2-1/2"]
[ECO "B51"]
[WhiteElo "2313"]
[BlackElo "2399"]
[Annotator "NA"]
[PlyCount "38"]
[EventDate "2018.10.20"]
[EventType "swiss"]
[EventCountry "GRE"]
[SourceTitle "playchess.com"]
[Source "ChessBase"]
[SourceQuality "1"]
[TimeControl "40/5400+30:1800+30"]

1. e4 {[%emt 0:00:00]} c5 {[%emt 0:00:00]} 2. Nf3 {[%emt 0:00:00]} d6 {[%emt 0:00:00]} 3. Bb5+ {[%emt 0:00:42]} Nc6 {[%emt 0:00:03]} 4. O-O {[%emt 0:00:28]} Bd7 {[%emt 0:00:25]} 5. Re1 {[%emt 0:00:21]} Nf6 {[%emt 0:00:32]} 6. c3 {[%emt 0:00:23]} a6 {[%emt 0:00:06]} 7. Bf1 {[%emt 0:00:15]} Bg4 {[%emt 0:00:10]} 8. h3 {[%emt 0:00:17]} Bxf3 {[%emt 0:00:03]} 9. Qxf3 {[%emt 0:00:17]} e6 {[%emt 0:00:08]} 10. Qd1 {[%emt 0:04:45]} d5 {[%emt 0:06:47]} 11. e5 {[%emt 0:05:35]} Nd7 {[%emt 0:00:14]} 12. f4 {[%emt 0:00:30]} c4 {[%emt 0:04:23]} 13. d4 {[%emt 0:06:18]} cxd3 $1 {[%emt 0:02:21]} 14. Bxd3 {[%emt 0:00:46]} Nc5 {[%emt 0:32:26]} (14... g5 $5) 15. Be3 {[%emt 0:09:29]} Nxd3 {[%emt 0:00:04]} 16. Qxd3 {[%emt 0:00:21]} Be7 {[%emt 0:00:05]} 17. Nd2 {[%emt 0:00:48]} Rc8 {[%emt 0:00:52]} 18. Nf3 {[%emt 0:01:41]} O-O $11 {[%emt 0:00:25]} 19. f5 {[%emt 0:08:36]} Qd7 {[%emt 0:23:27]} 1/2-1/2

[Event "WYCC 2018 O18"]
[Site "Halkidiki"]
[Date "2018.10.29"]
[Round "10"]
[White "Risting, Eivind Olav"]
[Black "Ioannidis, Evgenios"]
[Result "1-0"]
[ECO "E00"]
[WhiteElo "2299"]
[BlackElo "2407"]
[Annotator "NA"]
[PlyCount "89"]
[EventDate "2018.10.20"]
[EventType "swiss"]
[EventCountry "GRE"]
[SourceTitle "playchess.com"]
[Source "ChessBase"]
[SourceQuality "1"]
[TimeControl "40/5400+30:1800+30"]

1. d4 {[%emt 0:00:00]} e6 {[%emt 0:00:00]} 2. c4 {[%emt 0:00:00]} Bb4+ {[%emt 0:00:12]} 3. Bd2 {[%emt 0:00:29]} a5 {[%emt 0:00:27]} 4. Nf3 {[%emt 0:00:22]} Nf6 {[%emt 0:00:43]} 5. g3 {[%emt 0:00:28]} O-O {[%emt 0:00:58]} 6. Bg2 {[%emt 0:00:06]} b6 {[%emt 0:00:17]} 7. O-O {[%emt 0:00:24]} Bb7 {[%emt 0:00:18]} 8. Bf4 {[%emt 0:00:41]} Be7 {[%emt 0:00:31]} 9. Nc3 {[%emt 0:03:55]} Ne4 {[%emt 0:00:20]} 10. Qc2 {[%emt 0:03:00]} Nxc3 {[%emt 0:00:29]} 11. Qxc3 {[%emt 0:00:30]} d6 {[%emt 0:00:18] E16: Queen's Indian: 4 g3 Bb7 5 Bg2 Bb4+} (11... Be4 12. Rfd1 f5 13. d5 Bf6 14. Be5 Qe8 15. Bxf6 Rxf6 16. Bf1 Na6 17. Ne1 f4 18. Nf3 Bxf3 19. exf3 {0-1 (33) Almasi,Z (2682)-Fedorchuk,S (2648) Riadh 2017}) 12. Rfd1 {[%emt 0:09:02]} Nd7 {[%emt 0:00:42] LiveBook: 5 Games} 13. Qc2 {[%emt 0:01:42]} f5 $146 {[%emt 0:16:31]} ({Predecessor:} 13... Nf6 14. Ne1 Bxg2 15. Nxg2 c6 16. e4 d5 17. e5 Nd7 18. Rac1 b5 19. cxb5 cxb5 {½-½ (42) Nechaeva,M (2419)-Bojkovic,N (2384) Valjevo 2018}) 14. b3 {[%emt 0:11:13]} Be4 {[%emt 0:06:06]} 15. Qc1 {[%emt 0:03:55]} Qe8 {[%emt 0:14:00]} 16. Bg5 {[%emt 0:06:47]} Bf6 {[%emt 0:04:31]} 17. Ne1 {[%emt 0:08:45]} Qh5 {[%emt 0:16:16]} 18. Bxf6 {[%emt 0:00:52]} Rxf6 {[%emt 0:01:47]} 19. Qe3 {[%emt 0:08:51]} Raf8 {[%emt 0:00:04]} 20. Nf3 {[%emt 0:14:56]} Kh8 {[%emt 0:09:14]} 21. Rac1 {[%emt 0:01:31]} Rg8 $11 {[%emt 0:10:00]} 22. h4 {[%emt 0:10:34]} h6 {[%emt 0:02:14]} 23. a3 {[%emt 0:03:27]} Ba8 {[%emt 0:02:36]} 24. d5 {[%emt 0:02:46]} Re8 {[%emt 0:01:39]} 25. Qc3 {[%emt 0:01:18]} e5 {[%emt 0:00:57]} 26. b4 {[%emt 0:00:28]} a4 {[%emt 0:03:17]} 27. Qc2 {[%emt 0:02:57]} g5 {[%emt 0:01:20]} 28. Qxa4 {[%emt 0:00:29]} Rf7 {[%emt 0:00:04]} 29. hxg5 {[%emt 0:00:52]} hxg5 {[%emt 0:00:12]} 30. c5 {[%emt 0:00:23]} e4 {[%emt 0:03:28]} 31. Nd4 {[%emt 0:00:31]} Bxd5 {[%emt 0:02:58]} 32. cxd6 {[%emt 0:00:19]} cxd6 {[%emt 0:00:23]} 33. Nxf5 {[%emt 0:00:32]} Be6 {[%emt 0:00:47]} 34. Nxd6 {[%emt 0:01:13]} Rh7 {[%emt 0:00:05]} 35. Nxe8 {[%emt 0:02:00]} Qh2+ {[%emt 0:00:05]} 36. Kf1 {[%emt 0:00:02]} Bh3 {[%emt 0:00:03]} 37. Ke1 {[%emt 0:00:52]} e3 {[%emt 0:00:35]} 38. fxe3 {[%emt 0:00:13]} Qxg3+ {[%emt 0:00:55]} 39. Kd2 {[%emt 0:00:12]} Bxg2 {[%emt 0:00:32]} 40. b5 {[%emt 0:00:00]} Re7 {[%emt 0:00:00]} 41. Qd4+ {[%emt 0:11:12]} Kh7 {[%emt 0:02:22]} 42. Rh1+ {[%emt 0:05:58]} Bxh1 {[%emt 0:00:05]} 43. Rxh1+ {[%emt 0:00:07]} Kg6 {[%emt 0:00:05]} 44. Qd3+ {[%emt 0:00:34]} Kf7 {[%emt 0:00:51]} 45. Qf5+ {[%emt 0:02:44]} 1-0

[Event "WYCC 2018 O18"]
[Site "Halkidiki"]
[Date "2018.10.29"]
[Round "10"]
[White "Kouskoutis, Georgios-Alexandros"]
[Black "Torres Cueto, Jesus Marcial"]
[Result "1-0"]
[ECO "A20"]
[WhiteElo "2296"]
[BlackElo "2078"]
[Annotator "NA"]
[PlyCount "155"]
[EventDate "2018.10.20"]
[EventType "swiss"]
[EventCountry "GRE"]
[SourceTitle "playchess.com"]
[Source "ChessBase"]
[SourceQuality "1"]
[TimeControl "40/5400+30:1800+30"]

1. c4 {[%emt 0:00:00]} e5 {[%emt 0:00:15]} 2. g3 {[%emt 0:00:00]} Nf6 {[%emt 0:00:05]} 3. Bg2 {[%emt 0:00:00]} d5 {[%emt 0:00:26]} 4. cxd5 {[%emt 0:00:07]} Nxd5 {[%emt 0:00:06]} 5. Nc3 {[%emt 0:00:27]} Nb6 {[%emt 0:00:06]} 6. Nf3 {[%emt 0:00:04]} Nc6 {[%emt 0:00:06]} 7. O-O {[%emt 0:00:06]} Be7 {[%emt 0:00:13]} 8. d3 {[%emt 0:00:19]} O-O {[%emt 0:00:09]} 9. a3 {[%emt 0:00:33]} Re8 {[%emt 0:00:09]} 10. b4 {[%emt 0:00:59]} Bf8 {[%emt 0:00:11]} 11. Bb2 {[%emt 0:04:07]} a5 {[%emt 0:03:23]} 12. b5 {[%emt 0:03:36]} Nd4 {[%emt 0:00:10]} 13. Nd2 {[%emt 0:02:12]} a4 {[%emt 0:02:55]} 14. e3 {[%emt 0:20:37] A29: Englische Eröffnung (Vierspringer-Variante)} (14. Nc4 Nxc4 15. dxc4 Nb3 16. Qxd8 Rxd8 17. Rad1 Rd2 18. Rb1 Bf5 19. Bxb7 Ra7 20. Be4 Bxe4 21. Nxe4 Rxe2 {½-½ (35) Movsesian,S (2705)-Navara,D (2702) Prague 2011}) 14... Ne6 {[%emt 0:00:40]} 15. Nc4 {[%emt 0:03:58] LiveBook: 11 Games} Nc5 {[%emt 0:02:27]} 16. Nxe5 {[%emt 0:18:43]} Nb3 {[%emt 0:01:37] [#]} 17. Nxa4 $1 {[%emt 0:03:44]} ({Don't go for} 17. Qh5 $2 g6 $19) 17... Nxa1 {[%emt 0:03:05]} 18. Nxb6 {[%emt 0:00:06]} cxb6 {[%emt 0:00:17]} 19. Qxa1 {[%emt 0:01:29]} f6 {[%emt 0:02:16]} 20. Nc4 {[%emt 0:01:55]} Qxd3 $146 {[%emt 0:07:21]} ({Vorgänger:} 20... Bc5 21. d4 Bb4 {1-0 (37) Wrba,K-Schnabel,M ICCF corr 1991}) 21. Rd1 {[%emt 0:09:02]} Qf5 {[%emt 0:03:00]} 22. Nxb6 $16 {[%emt 0:01:47]} Rb8 {[%emt 0:00:12]} 23. a4 {[%emt 0:03:19]} Be6 {[%emt 0:00:48]} 24. Bd4 {[%emt 0:01:25]} Red8 {[%emt 0:00:58]} 25. Rc1 {[%emt 0:04:11]} h5 {[%emt 0:04:44]} 26. Qb2 {[%emt 0:10:37]} h4 {[%emt 0:01:11]} 27. a5 {[%emt 0:01:44]} h3 {[%emt 0:00:25]} 28. Bh1 {[%emt 0:00:19]} Qd3 {[%emt 0:00:13]} 29. Qb1 {[%emt 0:02:22]} Qe2 {[%emt 0:25:27]} 30. Re1 {[%emt 0:02:29]} Qd2 {[%emt 0:00:34]} 31. Qa1 {[%emt 0:01:14]} Bb4 {[%emt 0:02:07]} 32. Rd1 {[%emt 0:00:47]} Qe2 {[%emt 0:00:05]} 33. Rb1 {[%emt 0:01:17]} Qxb5 {[%emt 0:08:21]} 34. Qb2 {[%emt 0:00:24]} Rdc8 {[%emt 0:00:28]} 35. Nxc8 {[%emt 0:00:58]} Rxc8 {[%emt 0:00:05]} 36. Bc3 {[%emt 0:01:34]} Qf5 {[%emt 0:03:01]} 37. e4 {[%emt 0:01:11]} Bxc3 {[%emt 0:01:24]} 38. exf5 {[%emt 0:00:06]} Bxb2 {[%emt 0:00:07]} 39. fxe6 {[%emt 0:00:03]} Rc5 {[%emt 0:03:22]} 40. Bxb7 {[%emt 0:00:00]} Rxa5 {[%emt 0:00:00]} 41. Bg2 {[%emt 0:03:42]} Ra1 {[%emt 0:06:56]} 42. Rxa1 {[%emt 0:00:05]} Bxa1 {[%emt 0:00:01]} 43. Bxh3 {[%emt 0:00:08]} g6 {[%emt 0:00:25]} 44. Bf1 {[%emt 0:05:22]} Kf8 {[%emt 0:00:14]} 45. Bd3 {[%emt 0:18:09]} Ke7 {[%emt 0:00:50]} 46. Bxg6 {[%emt 0:02:26]} Kxe6 {[%emt 0:00:06]} 47. Kg2 {[%emt 0:00:04]} Ke7 {[%emt 0:00:05]} 48. f4 {[%emt 0:02:52]} Kf8 {[%emt 0:00:06]} 49. Kf3 {[%emt 0:00:03]} Kg7 {[%emt 0:00:03]} 50. Bd3 {[%emt 0:00:53]} Bb2 {[%emt 0:00:06]} 51. Ke4 {[%emt 0:02:03]} Bc3 {[%emt 0:00:33]} 52. Kf3 {[%emt 0:00:35]} Bb2 {[%emt 0:00:04]} 53. h4 Bc3 {[%emt 0:00:07]} 54. Ke2 {[%emt 0:01:25]} Bb2 {[%emt 0:00:04]} 55. g4 {[%emt 0:00:06]} Bc1 {[%emt 0:01:38]} 56. Kf3 {[%emt 0:00:06]} Bd2 {[%emt 0:00:56]} 57. g5 {[%emt 0:00:19]} fxg5 {[%emt 0:00:51]} 58. hxg5 {[%emt 0:00:05]} Bc1 {[%emt 0:00:05]} 59. Kg4 {[%emt 0:00:14]} Bd2 {[%emt 0:00:04]} 60. f5 {[%emt 0:02:38]} Bc3 {[%emt 0:00:05]} 61. Be2 {[%emt 0:00:31]} Bb2 {[%emt 0:00:18]} 62. Kh4 {[%emt 0:00:23]} Bc3 {[%emt 0:00:20]} 63. Bh5 {[%emt 0:00:05]} Bb2 {[%emt 0:01:04]} 64. Kg4 {[%emt 0:00:04]} Bc3 {[%emt 0:02:25]} 65. Kf3 {[%emt 0:00:06]} Bb2 {[%emt 0:01:18]} 66. Ke4 {[%emt 0:00:12]} Bc3 {[%emt 0:00:20]} 67. Kd5 {[%emt 0:00:44]} Bd2 {[%emt 0:05:29]} 68. f6+ {[%emt 0:00:09]} Kg8 {[%emt 0:01:27]} 69. g6 {[%emt 0:00:05]} Bh6 {[%emt 0:01:02]} 70. Ke6 {[%emt 0:00:07]} Bf8 {[%emt 0:00:42]} 71. Be2 {[%emt 0:00:51]} Bh6 {[%emt 0:00:15]} 72. Bc4 {[%emt 0:00:34]} Bf8 {[%emt 0:01:09]} 73. Kd7+ {[%emt 0:00:20]} Kh8 {[%emt 0:00:05]} 74. Ke8 {[%emt 0:00:16]} Bg7 {[%emt 0:00:46]} 75. fxg7+ {[%emt 0:00:07]} Kxg7 {[%emt 0:00:02]} 76. Bd3 {[%emt 0:00:08]} Kh8 {[%emt 0:00:12]} 77. Ke7 {[%emt 0:00:04]} Kg7 {[%emt 0:00:08]} 78. Ke6 {[%emt 0:00:03]} 1-0